[Event "Late-Titled-Tuesday-Blitz-September-12-2023"]
[Site "Chess.com"]
[Date "2023.09.12"]
[Round "8"]
[White "AndreiITrifan"]
[Black "BlueWizzard"]
[Result "1-0"]
[WhiteElo "2665"]
[BlackElo "2923"]
[TimeControl "180+1"]
[EndTime "15:25:03 PDT"]
[Termination "AndreiITrifan won by resignation"]

1. Nf3 {[%clk 0:03:00]} 1... g6 {[%clk 0:02:59.8]} 2. d4 {[%clk 0:02:56.8]} 2...
Bg7 {[%clk 0:02:55.2]} 3. b3 {[%clk 0:02:57.1]} 3... a5 {[%clk 0:02:53]} 4. Bb2
{[%clk 0:02:54]} 4... a4 {[%clk 0:02:53.3]} 5. b4 {[%clk 0:02:53.3]} 5... d6
{[%clk 0:02:47.3]} 6. a3 {[%clk 0:02:52.3]} 6... c5 {[%clk 0:02:46.5]} 7. e3
{[%clk 0:02:52.3]} 7... Nc6 {[%clk 0:02:36.5]} 8. Bb5 {[%clk 0:02:30.7]} 8...
Bd7 {[%clk 0:02:26.8]} 9. c3 {[%clk 0:02:30.1]} 9... Nf6 {[%clk 0:02:19.8]} 10.
Bxa4 {[%clk 0:02:26.7]} 10... O-O {[%clk 0:02:13.8]} 11. Bb3 {[%clk 0:02:23.4]}
11... e5 {[%clk 0:02:07.8]} 12. dxe5 {[%clk 0:02:17.4]} 12... dxe5 {[%clk
0:02:07.9]} 13. h3 {[%clk 0:02:06.1]} 13... e4 {[%clk 0:02:06]} 14. Nfd2 {[%clk
0:02:05.9]} 14... Ne5 {[%clk 0:02:05.2]} 15. Bc2 {[%clk 0:02:03.4]} 15... Bb5
{[%clk 0:02:01.6]} 16. c4 {[%clk 0:02:00.9]} 16... Bxc4 {[%clk 0:01:53.6]} 17.
Nxc4 {[%clk 0:02:01.8]} 17... Qxd1+ {[%clk 0:01:52.9]} 18. Kxd1 {[%clk
0:01:57.8]} 18... Nxc4 {[%clk 0:01:53.8]} 19. Bc3 {[%clk 0:01:55.7]} 19... Nd5
{[%clk 0:01:42.9]} 20. Bxg7 {[%clk 0:01:51]} 20... Kxg7 {[%clk 0:01:43.8]} 21.
Bb3 {[%clk 0:01:49.4]} 21... Rfd8 {[%clk 0:01:37.8]} 22. Ke2 {[%clk 0:01:43.4]}
22... b5 {[%clk 0:01:30.8]} 23. bxc5 {[%clk 0:01:28]} 23... Rdc8 {[%clk
0:01:13]} 24. Rc1 {[%clk 0:01:23.1]} 24... Nf6 {[%clk 0:00:56.5]} 25. Nd2 {[%clk
0:01:07.3]} 25... Rxc5 {[%clk 0:00:54.7]} 26. a4 {[%clk 0:00:57.8]} 26... Rg5
{[%clk 0:00:46.4]} 27. Bxc4 {[%clk 0:00:53.2]} 27... bxc4 {[%clk 0:00:46.4]} 28.
g4 {[%clk 0:00:53.4]} 28... h5 {[%clk 0:00:46]} 29. gxh5 {[%clk 0:00:49.8]}
29... Rxh5 {[%clk 0:00:42.9]} 30. Rxc4 {[%clk 0:00:50]} 30... Rxh3 {[%clk
0:00:41.1]} 31. Nxe4 {[%clk 0:00:45.2]} 31... Rh4 {[%clk 0:00:41.3]} 32. Nd2
{[%clk 0:00:44.5]} 32... Rh2 {[%clk 0:00:41.4]} 33. a5 {[%clk 0:00:42.5]} 33...
Ra6 {[%clk 0:00:40.9]} 34. Rb4 {[%clk 0:00:35.7]} 34... Nd5 {[%clk 0:00:39.5]}
35. Rd4 {[%clk 0:00:30.2]} 35... Nc3+ {[%clk 0:00:28.1]} 36. Kf3 {[%clk
0:00:20.6]} 36... g5 {[%clk 0:00:21.1]} 37. Kg3 {[%clk 0:00:20.4]} 37... Rah6
{[%clk 0:00:17.9]} 38. Nf3 {[%clk 0:00:15.7]} 38... R2h3+ {[%clk 0:00:13.6]} 39.
Kg2 {[%clk 0:00:15.6]} 39... R3h5 {[%clk 0:00:09.1]} 40. Rg4 {[%clk 0:00:15.2]}
40... Ra6 {[%clk 0:00:08.4]} 41. Rxg5+ {[%clk 0:00:14.8]} 41... Rxg5+ {[%clk
0:00:08]} 42. Nxg5 {[%clk 0:00:15.7]} 42... Nd5 {[%clk 0:00:06.1]} 43. Nf3
{[%clk 0:00:15.3]} 43... Ne7 {[%clk 0:00:05.6]} 44. Nd4 {[%clk 0:00:15.6]} 44...
Nc8 {[%clk 0:00:05.7]} 45. Nb3 {[%clk 0:00:15.9]} 45... Rg6+ {[%clk 0:00:05]}
46. Kf3 {[%clk 0:00:15.9]} 46... Na7 {[%clk 0:00:05.9]} 47. a6 {[%clk
0:00:15.8]} 47... Rf6+ {[%clk 0:00:05.9]} 48. Ke2 {[%clk 0:00:16.1]} 48... Rc6
{[%clk 0:00:06.5]} 49. Nd4 {[%clk 0:00:16.4]} 49... Rb6 {[%clk 0:00:07.1]} 50.
Kd3 {[%clk 0:00:16.7]} 50... Kf6 {[%clk 0:00:07.6]} 51. f4 {[%clk 0:00:17]}
51... Ke7 {[%clk 0:00:08]} 52. Kc4 {[%clk 0:00:17.5]} 52... Rb8 {[%clk
0:00:08.1]} 53. Kc5 {[%clk 0:00:17.1]} 53... Kd7 {[%clk 0:00:07.4]} 54. Rd1
{[%clk 0:00:16.1]} 54... Kc7 {[%clk 0:00:06.6]} 55. Rc1 {[%clk 0:00:15.4]} 55...
Kd7 {[%clk 0:00:06.7]} 56. Kd5 {[%clk 0:00:15.7]} 56... Rb6 {[%clk 0:00:06.2]}
57. Ra1 {[%clk 0:00:15.4]} 57... Rb4 {[%clk 0:00:05.9]} 58. Kc5 {[%clk 0:00:15]}
58... Rb8 {[%clk 0:00:06]} 59. e4 {[%clk 0:00:14.6]} 59... Rc8+ {[%clk
0:00:05.3]} 60. Kd5 {[%clk 0:00:15]} 60... Rd8 {[%clk 0:00:05.5]} 61. e5 {[%clk
0:00:15.3]} 61... Kc7+ {[%clk 0:00:06]} 62. Ke4 {[%clk 0:00:15.7]} 62... Kb6
{[%clk 0:00:06.7]} 63. f5 {[%clk 0:00:15.9]} 63... Kc5 {[%clk 0:00:06.6]} 64.
Rc1+ {[%clk 0:00:15.3]} 64... Kb6 {[%clk 0:00:06.7]} 65. Ra1 {[%clk 0:00:15.8]}
65... Kc5 {[%clk 0:00:07.1]} 66. Ra4 {[%clk 0:00:16.3]} 66... Re8 {[%clk
0:00:06.7]} 67. e6 {[%clk 0:00:16.5]} 67... f6 {[%clk 0:00:07.1]} 68. Ra1 {[%clk
0:00:16]} 68... Rd8 {[%clk 0:00:07.6]} 69. Rc1+ {[%clk 0:00:16]} 69... Kb6
{[%clk 0:00:08.1]} 70. Rb1+ {[%clk 0:00:15.7]} 70... Kc5 {[%clk 0:00:08.5]} 71.
Rc1+ {[%clk 0:00:14]} 71... Kb6 {[%clk 0:00:09.1]} 72. Ra1 {[%clk 0:00:14.6]}
72... Kc5 {[%clk 0:00:09.4]} 73. Ra4 {[%clk 0:00:15.1]} 73... Rh8 {[%clk
0:00:08.4]} 74. Nf3 {[%clk 0:00:14.4]} 74... Kd6 {[%clk 0:00:08]} 75. Rd4+
{[%clk 0:00:14.5]} 75... Kc6 {[%clk 0:00:08.6]} 76. Rd7 {[%clk 0:00:14.5]} 76...
Nb5 {[%clk 0:00:09.1]} 77. Nd4+ {[%clk 0:00:14.6]} 77... Nxd4 {[%clk 0:00:09.2]}
78. Kxd4 {[%clk 0:00:14.6]} 78... Ra8 {[%clk 0:00:09.9]} 79. a7 {[%clk
0:00:14.8]} 79... Kb6 {[%clk 0:00:09.4]} 80. Kd5 {[%clk 0:00:14.8]} 80... Ka6
{[%clk 0:00:10.3]} 81. e7 {[%clk 0:00:14.3]} 1-0

[Event "Late-Titled-Tuesday-Blitz-September-12-2023"]
[Site "Chess.com"]
[Date "2023.09.12"]
[Round "8"]
[White "vi_pranav"]
[Black "Firouzja2003"]
[Result "1/2-1/2"]
[WhiteElo "2994"]
[BlackElo "3080"]
[TimeControl "180+1"]
[EndTime "15:25:58 PDT"]
[Termination "Game drawn by repetition"]

1. e4 {[%clk 0:03:00.9]} 1... c6 {[%clk 0:02:59.2]} 2. d4 {[%clk 0:02:59]} 2...
d5 {[%clk 0:02:59.9]} 3. e5 {[%clk 0:02:59.7]} 3... Bf5 {[%clk 0:02:59.8]} 4.
Nf3 {[%clk 0:03:00.3]} 4... e6 {[%clk 0:03:00.4]} 5. Be2 {[%clk 0:03:00.9]} 5...
Ne7 {[%clk 0:03:00.4]} 6. O-O {[%clk 0:03:00.1]} 6... Bg6 {[%clk 0:02:59]} 7. c3
{[%clk 0:02:59.2]} 7... Nf5 {[%clk 0:02:59.2]} 8. Nbd2 {[%clk 0:02:54.3]} 8...
Nd7 {[%clk 0:02:54.2]} 9. Re1 {[%clk 0:02:53.9]} 9... c5 {[%clk 0:02:51.9]} 10.
Nf1 {[%clk 0:02:45.9]} 10... cxd4 {[%clk 0:02:50.2]} 11. cxd4 {[%clk 0:02:45.6]}
11... Be7 {[%clk 0:02:49.2]} 12. Bd3 {[%clk 0:02:42.5]} 12... O-O {[%clk
0:02:46.2]} 13. h3 {[%clk 0:02:36.5]} 13... Rc8 {[%clk 0:02:45.6]} 14. Ne3
{[%clk 0:02:18.2]} 14... Nxe3 {[%clk 0:02:38.6]} 15. Bxe3 {[%clk 0:02:19.1]}
15... Qb6 {[%clk 0:02:37.9]} 16. Re2 {[%clk 0:02:16.1]} 16... Rc6 {[%clk
0:02:33]} 17. Bxg6 {[%clk 0:02:14.2]} 17... hxg6 {[%clk 0:02:32.8]} 18. Rc2
{[%clk 0:02:11.7]} 18... Rfc8 {[%clk 0:02:29.7]} 19. Rxc6 {[%clk 0:02:04.4]}
19... Rxc6 {[%clk 0:02:25.5]} 20. b3 {[%clk 0:02:03.8]} 20... Ba3 {[%clk
0:02:19.5]} 21. Ng5 {[%clk 0:02:01.8]} 21... Qc7 {[%clk 0:02:16.4]} 22. g3
{[%clk 0:01:39.3]} 22... Nf8 {[%clk 0:02:10.2]} 23. h4 {[%clk 0:01:39]} 23...
Be7 {[%clk 0:01:25.6]} 24. Qf3 {[%clk 0:01:31.8]} 24... Bxg5 {[%clk 0:01:17.1]}
25. hxg5 {[%clk 0:01:32.7]} 25... Rc2 {[%clk 0:01:17.3]} 26. Kg2 {[%clk
0:01:24.6]} 26... Qc3 {[%clk 0:01:17.8]} 27. Rh1 {[%clk 0:01:17.7]} 27... Qd3
{[%clk 0:01:18.1]} 28. Qf4 {[%clk 0:01:04.2]} 28... Nd7 {[%clk 0:00:26.8]} 29.
a4 {[%clk 0:00:15.6]} 29... Qe4+ {[%clk 0:00:19.5]} 30. Qxe4 {[%clk 0:00:15.5]}
30... dxe4 {[%clk 0:00:20.4]} 31. a5 {[%clk 0:00:15]} 31... Nb8 {[%clk
0:00:17.8]} 32. Rd1 {[%clk 0:00:13.8]} 32... Nc6 {[%clk 0:00:15.8]} 33. d5
{[%clk 0:00:14.1]} 33... exd5 {[%clk 0:00:11.1]} 34. Rxd5 {[%clk 0:00:15]} 34...
Ra2 {[%clk 0:00:07.9]} 35. b4 {[%clk 0:00:06.4]} 35... Nxb4 {[%clk 0:00:06.8]}
36. Rd8+ {[%clk 0:00:06.8]} 36... Kh7 {[%clk 0:00:07.4]} 37. Rd7 {[%clk
0:00:07.1]} 37... Nc2 {[%clk 0:00:08.1]} 38. Bxa7 {[%clk 0:00:04.4]} 38... Ne1+
{[%clk 0:00:06]} 39. Kh3 {[%clk 0:00:03.4]} 39... Nf3 {[%clk 0:00:06.9]} 40.
Rxb7 {[%clk 0:00:02.7]} 40... Nxg5+ {[%clk 0:00:03.1]} 41. Kg4 {[%clk
0:00:02.6]} 41... Nf3 {[%clk 0:00:03.6]} 42. e6 {[%clk 0:00:01.7]} 42... fxe6
{[%clk 0:00:02.3]} 43. Bb6 {[%clk 0:00:02.3]} 43... g5 {[%clk 0:00:01.6]} 44.
Ra7 {[%clk 0:00:01.4]} 44... Kg6 {[%clk 0:00:01.5]} 45. Re7 {[%clk 0:00:02]}
45... Kf6 {[%clk 0:00:01.6]} 46. Bd8 {[%clk 0:00:02]} 46... Kg6 {[%clk
0:00:01.5]} 47. Bb6 {[%clk 0:00:02]} 47... Kf6 {[%clk 0:00:01.7]} 48. Bd8 {[%clk
0:00:02.6]} 48... Ra1 {[%clk 0:00:02]} 49. Re8+ {[%clk 0:00:02.5]} 49... Kf7
{[%clk 0:00:02.5]} 50. Re7+ {[%clk 0:00:03.1]} 50... Kf6 {[%clk 0:00:02.9]} 51.
Re8+ {[%clk 0:00:03.7]} 51... Ke5 {[%clk 0:00:03.1]} 52. Bc7+ {[%clk 0:00:02.9]}
52... Kd5 {[%clk 0:00:03.2]} 53. Rd8+ {[%clk 0:00:02.8]} 53... Kc6 {[%clk
0:00:03.6]} 54. Bb6 {[%clk 0:00:03]} 54... Ra2 {[%clk 0:00:03.4]} 55. Rc8+
{[%clk 0:00:03.2]} 55... Kd5 {[%clk 0:00:03.8]} 56. Rc7 {[%clk 0:00:03.4]} 56...
g6 {[%clk 0:00:03.3]} 57. Rg7 {[%clk 0:00:03.5]} 57... Kd6 {[%clk 0:00:03.5]}
58. Rg8 {[%clk 0:00:03.6]} 58... Ke7 {[%clk 0:00:03.6]} 59. Ra8 {[%clk
0:00:03.7]} 59... Kf6 {[%clk 0:00:03.3]} 60. Rf8+ {[%clk 0:00:03.7]} 60... Kg7
{[%clk 0:00:03.6]} 61. Rc8 {[%clk 0:00:03.5]} 61... Kh6 {[%clk 0:00:03.5]} 62.
Rh8+ {[%clk 0:00:03.6]} 62... Kg7 {[%clk 0:00:04.1]} 63. Ra8 {[%clk 0:00:04.5]}
63... Ra4 {[%clk 0:00:04.2]} 64. Be3 {[%clk 0:00:03.6]} 64... Kf6 {[%clk
0:00:04.1]} 65. a6 {[%clk 0:00:03.6]} 65... Ne5+ {[%clk 0:00:04.2]} 66. Kh3
{[%clk 0:00:04]} 66... g4+ {[%clk 0:00:04.7]} 67. Kg2 {[%clk 0:00:04]} 67... Nf3
{[%clk 0:00:05.2]} 68. a7 {[%clk 0:00:03.8]} 68... Ra1 {[%clk 0:00:05.6]} 69.
Bd4+ {[%clk 0:00:04]} 69... Nxd4 {[%clk 0:00:05.4]} 70. Rf8+ {[%clk 0:00:04.6]}
70... Ke5 {[%clk 0:00:05.4]} 71. a8=Q {[%clk 0:00:05.5]} 71... Rxa8 {[%clk
0:00:05.7]} 72. Rxa8 {[%clk 0:00:06.4]} 72... Nf5 {[%clk 0:00:05.9]} 73. Ra4
{[%clk 0:00:05.7]} 73... Kd5 {[%clk 0:00:03.1]} 74. Kf1 {[%clk 0:00:05.5]} 74...
Ke5 {[%clk 0:00:03.4]} 75. Ra5+ {[%clk 0:00:05.1]} 75... Kf6 {[%clk 0:00:03.6]}
76. Ke2 {[%clk 0:00:04.6]} 76... e3 {[%clk 0:00:02]} 77. Ra4 {[%clk 0:00:03.4]}
77... exf2 {[%clk 0:00:02.6]} 78. Kxf2 {[%clk 0:00:02.2]} 78... Kg5 {[%clk
0:00:02.8]} 79. Re4 {[%clk 0:00:02.3]} 79... Ng7 {[%clk 0:00:03.3]} 80. Re5+
{[%clk 0:00:02.7]} 80... Kf6 {[%clk 0:00:03.7]} 81. Re4 {[%clk 0:00:02.9]} 81...
Kf5 {[%clk 0:00:04.2]} 82. Rf4+ {[%clk 0:00:03.4]} 82... Kg5 {[%clk 0:00:04.9]}
83. Re4 {[%clk 0:00:03.6]} 83... Kf6 {[%clk 0:00:05.2]} 84. Rxg4 {[%clk
0:00:03.8]} 84... e5 {[%clk 0:00:04.2]} 85. Ra4 {[%clk 0:00:04.7]} 85... Ne6
{[%clk 0:00:04.3]} 86. Kf3 {[%clk 0:00:04.6]} 86... Kf5 {[%clk 0:00:04.4]} 87.
Ke3 {[%clk 0:00:03.2]} 87... Nd4 {[%clk 0:00:02.7]} 88. Ra6 {[%clk 0:00:01.6]}
88... Nc2+ {[%clk 0:00:03]} 89. Kf3 {[%clk 0:00:01.4]} 89... Nd4+ {[%clk
0:00:03.6]} 90. Ke3 {[%clk 0:00:02]} 90... Nc2+ {[%clk 0:00:03.9]} 91. Kf3
{[%clk 0:00:02.1]} 91... Nd4+ {[%clk 0:00:03.9]} 92. Ke3 {[%clk 0:00:02.6]}
1/2-1/2

[Event "Late-Titled-Tuesday-Blitz-September-12-2023"]
[Site "Chess.com"]
[Date "2023.09.12"]
[Round "9"]
[White "OYAcosta"]
[Black "Langua_Chess"]
[Result "0-1"]
[WhiteElo "2240"]
[BlackElo "2492"]
[TimeControl "180+1"]
[EndTime "15:34:46 PDT"]
[Termination "Langua_Chess won by resignation"]

1. d4 {[%clk 0:03:00.9]} 1... d5 {[%clk 0:02:57.8]} 2. Bf4 {[%clk 0:02:58.1]}
2... c5 {[%clk 0:02:57.9]} 3. e3 {[%clk 0:02:57.9]} 3... cxd4 {[%clk 0:02:58.6]}
4. exd4 {[%clk 0:02:57.9]} 4... Nc6 {[%clk 0:02:59.4]} 5. Nf3 {[%clk 0:02:58.3]}
5... Bg4 {[%clk 0:02:57.5]} 6. c3 {[%clk 0:02:57.8]} 6... e6 {[%clk 0:02:58]} 7.
Nbd2 {[%clk 0:02:57.5]} 7... Bd6 {[%clk 0:02:57.6]} 8. Bxd6 {[%clk 0:02:56.2]}
8... Qxd6 {[%clk 0:02:57.7]} 9. h3 {[%clk 0:02:56.8]} 9... Bh5 {[%clk
0:02:57.5]} 10. g4 {[%clk 0:02:56.9]} 10... Bg6 {[%clk 0:02:57.4]} 11. Qb3
{[%clk 0:02:54.5]} 11... Rb8 {[%clk 0:02:56.5]} 12. Bb5 {[%clk 0:02:52]} 12...
Ne7 {[%clk 0:02:56.6]} 13. O-O {[%clk 0:02:51.2]} 13... h5 {[%clk 0:02:55.2]}
14. g5 {[%clk 0:02:50.5]} 14... h4 {[%clk 0:02:55.2]} 15. Rfe1 {[%clk 0:02:50]}
15... Qf4 {[%clk 0:02:54.6]} 16. Re3 {[%clk 0:02:28.9]} 16... O-O {[%clk
0:02:53.2]} 17. Qd1 {[%clk 0:02:03]} 17... Nf5 {[%clk 0:02:52.2]} 18. Re1 {[%clk
0:02:02.6]} 18... Bh5 {[%clk 0:02:52.4]} 19. Be2 {[%clk 0:02:01.4]} 19... b5
{[%clk 0:02:41.2]} 20. Nf1 {[%clk 0:01:59.7]} 20... Bxf3 {[%clk 0:02:38.4]} 21.
Bxf3 {[%clk 0:01:59.7]} 21... Qxg5+ {[%clk 0:02:39.2]} 22. Kh2 {[%clk
0:01:59.8]} 22... Qf4+ {[%clk 0:02:39.1]} 23. Kh1 {[%clk 0:01:56.1]} 23... b4
{[%clk 0:02:40]} 24. Bg2 {[%clk 0:01:47.6]} 24... bxc3 {[%clk 0:02:36.9]} 0-1

[Event "Late-Titled-Tuesday-Blitz-September-12-2023"]
[Site "Chess.com"]
[Date "2023.09.12"]
[Round "9"]
[White "Gogolev_Artemy"]
[Black "HajiyevKanan"]
[Result "0-1"]
[WhiteElo "2398"]
[BlackElo "2502"]
[TimeControl "180+1"]
[EndTime "15:36:24 PDT"]
[Termination "HajiyevKanan won by resignation"]

1. d4 {[%clk 0:02:45]} 1... c6 {[%clk 0:03:00.9]} 2. c4 {[%clk 0:02:43.6]} 2...
d5 {[%clk 0:03:01.8]} 3. Nf3 {[%clk 0:02:41.8]} 3... Nf6 {[%clk 0:03:02.7]} 4.
Nc3 {[%clk 0:02:42.1]} 4... a6 {[%clk 0:03:02.8]} 5. c5 {[%clk 0:02:41.5]} 5...
Ne4 {[%clk 0:03:01.7]} 6. Nxe4 {[%clk 0:02:32.9]} 6... dxe4 {[%clk 0:03:02.6]}
7. Ne5 {[%clk 0:02:33.3]} 7... Nd7 {[%clk 0:02:57.5]} 8. Bf4 {[%clk 0:02:25.3]}
8... Nxe5 {[%clk 0:02:53.4]} 9. Bxe5 {[%clk 0:02:26.2]} 9... Qa5+ {[%clk
0:02:53.5]} 10. Qd2 {[%clk 0:02:26.6]} 10... Qxd2+ {[%clk 0:02:54.2]} 11. Kxd2
{[%clk 0:02:27.5]} 11... f6 {[%clk 0:02:53.4]} 12. Bg3 {[%clk 0:02:27.3]} 12...
h5 {[%clk 0:02:51.9]} 13. h3 {[%clk 0:02:27.1]} 13... Bf5 {[%clk 0:02:52]} 14.
e3 {[%clk 0:02:27.3]} 14... O-O-O {[%clk 0:02:50.7]} 15. Kc2 {[%clk 0:02:21]}
15... h4 {[%clk 0:02:51.2]} 16. Bh2 {[%clk 0:02:20.8]} 16... e5 {[%clk
0:02:49.2]} 17. dxe5 {[%clk 0:02:20.1]} 17... Bxc5 {[%clk 0:02:49.9]} 18. Be2
{[%clk 0:02:12.1]} 18... Rd5 {[%clk 0:02:33.4]} 19. Bc4 {[%clk 0:02:04.4]} 19...
Rd7 {[%clk 0:02:27.2]} 20. Rad1 {[%clk 0:02:02.2]} 20... Rhd8 {[%clk 0:02:22.8]}
21. Rxd7 {[%clk 0:01:53]} 21... Rxd7 {[%clk 0:02:23.7]} 22. exf6 {[%clk
0:01:52.3]} 22... gxf6 {[%clk 0:02:20.8]} 23. Bf4 {[%clk 0:01:35.1]} 23... b5
{[%clk 0:02:17.5]} 24. Be2 {[%clk 0:01:28.4]} 24... Bb4 {[%clk 0:02:07.6]} 25.
Rd1 {[%clk 0:01:27.8]} 25... Rxd1 {[%clk 0:02:06.4]} 26. Kxd1 {[%clk 0:01:19.8]}
26... Kd7 {[%clk 0:02:07.3]} 27. Kc2 {[%clk 0:00:57.6]} 27... a5 {[%clk
0:02:04.1]} 28. Kb3 {[%clk 0:00:52.2]} 28... Be1 {[%clk 0:02:02.7]} 0-1

[Event "Late-Titled-Tuesday-Blitz-September-12-2023"]
[Site "Chess.com"]
[Date "2023.09.12"]
[Round "9"]
[White "F-Ghaith2021"]
[Black "Der_Honigdachs"]
[Result "0-1"]
[WhiteElo "2383"]
[BlackElo "2537"]
[TimeControl "180+1"]
[EndTime "15:36:31 PDT"]
[Termination "Der_Honigdachs won by resignation"]

1. e4 {[%clk 0:02:56.8]} 1... e5 {[%clk 0:02:57.8]} 2. Nf3 {[%clk 0:02:54.8]}
2... d5 {[%clk 0:02:57.9]} 3. d3 {[%clk 0:02:49.4]} 3... dxe4 {[%clk 0:02:52.6]}
4. dxe4 {[%clk 0:02:50.3]} 4... Qxd1+ {[%clk 0:02:52.2]} 5. Kxd1 {[%clk
0:02:48.2]} 5... f6 {[%clk 0:02:52.4]} 6. c3 {[%clk 0:02:48.5]} 6... Be6 {[%clk
0:02:47.1]} 7. Kc2 {[%clk 0:02:47.8]} 7... Nd7 {[%clk 0:02:47.2]} 8. Be3 {[%clk
0:02:43.3]} 8... O-O-O {[%clk 0:02:45.4]} 9. Na3 {[%clk 0:02:40]} 9... Bxa3
{[%clk 0:02:40.2]} 10. bxa3 {[%clk 0:02:39.1]} 10... Nb6 {[%clk 0:02:40.5]} 11.
Nd2 {[%clk 0:02:30.4]} 11... Ne7 {[%clk 0:02:36.5]} 12. f3 {[%clk 0:02:28.1]}
12... Nc6 {[%clk 0:02:34.7]} 13. Be2 {[%clk 0:02:26.2]} 13... Na5 {[%clk
0:02:30.9]} 14. Rhd1 {[%clk 0:02:09.5]} 14... Bd7 {[%clk 0:02:21.7]} 15. Nb3
{[%clk 0:02:06.8]} 15... Ba4 {[%clk 0:02:15.6]} 16. Bxb6 {[%clk 0:02:04.5]}
16... axb6 {[%clk 0:02:15.1]} 17. Kb2 {[%clk 0:02:04.9]} 17... c5 {[%clk
0:02:06.4]} 18. h4 {[%clk 0:01:52.6]} 18... Rxd1 {[%clk 0:01:54]} 19. Bxd1
{[%clk 0:01:49.1]} 19... Nc4+ {[%clk 0:01:53.8]} 20. Kc1 {[%clk 0:01:44.4]}
20... Rd8 {[%clk 0:01:51.5]} 21. Nd2 {[%clk 0:01:32.7]} 21... Rxd2 {[%clk
0:01:44.4]} 22. Bxa4 {[%clk 0:01:32.5]} 22... Rxg2 {[%clk 0:01:43.7]} 23. Rb1
{[%clk 0:01:26.5]} 23... Rg1+ {[%clk 0:01:37.6]} 24. Bd1 {[%clk 0:01:25]} 24...
Ne3 {[%clk 0:01:36.4]} 25. Kd2 {[%clk 0:01:25.3]} 25... Rxd1+ {[%clk 0:01:35.7]}
26. Rxd1 {[%clk 0:01:26.2]} 26... Nxd1 {[%clk 0:01:35.8]} 27. Kxd1 {[%clk
0:01:27]} 27... h5 {[%clk 0:01:33.6]} 28. a4 {[%clk 0:01:25.5]} 28... g5 {[%clk
0:01:33.3]} 29. Ke2 {[%clk 0:01:24.6]} 29... Kb8 {[%clk 0:01:28.1]} 30. Kf2
{[%clk 0:01:24.3]} 30... Ka7 {[%clk 0:01:28.2]} 31. hxg5 {[%clk 0:01:21.6]}
31... fxg5 {[%clk 0:01:27.8]} 0-1

[Event "Late-Titled-Tuesday-Blitz-September-12-2023"]
[Site "Chess.com"]
[Date "2023.09.12"]
[Round "9"]
[White "Mikasinski"]
[Black "Eloist"]
[Result "1/2-1/2"]
[WhiteElo "2664"]
[BlackElo "2501"]
[TimeControl "180+1"]
[EndTime "15:37:26 PDT"]
[Termination "Game drawn by repetition"]

1. e4 {[%clk 0:03:00.9]} 1... e6 {[%clk 0:02:59.3]} 2. d4 {[%clk 0:03:01.1]}
2... d5 {[%clk 0:02:59]} 3. Nc3 {[%clk 0:03:02]} 3... Nf6 {[%clk 0:02:59]} 4.
Bg5 {[%clk 0:03:02]} 4... dxe4 {[%clk 0:02:58.5]} 5. Nxe4 {[%clk 0:03:02.2]}
5... Be7 {[%clk 0:02:58.8]} 6. Bxf6 {[%clk 0:03:02.8]} 6... gxf6 {[%clk
0:02:58.9]} 7. Nf3 {[%clk 0:03:03.4]} 7... f5 {[%clk 0:02:59]} 8. Ng3 {[%clk
0:03:03.9]} 8... c5 {[%clk 0:02:58.6]} 9. c3 {[%clk 0:03:01.5]} 9... cxd4 {[%clk
0:02:56.2]} 10. Nxd4 {[%clk 0:03:01.4]} 10... Nc6 {[%clk 0:02:47]} 11. Bb5
{[%clk 0:02:58.9]} 11... Bd7 {[%clk 0:02:46.4]} 12. Bxc6 {[%clk 0:02:57]} 12...
Bxc6 {[%clk 0:02:45]} 13. Nxc6 {[%clk 0:02:56.4]} 13... Qxd1+ {[%clk 0:02:43.3]}
14. Kxd1 {[%clk 0:02:55.4]} 14... bxc6 {[%clk 0:02:44.2]} 15. Kc2 {[%clk
0:02:56.1]} 15... h5 {[%clk 0:02:39.9]} 16. Ne2 {[%clk 0:02:55]} 16... Rg8
{[%clk 0:02:38.5]} 17. g3 {[%clk 0:02:55.2]} 17... h4 {[%clk 0:02:36.6]} 18. f4
{[%clk 0:02:55.7]} 18... Kd7 {[%clk 0:02:30.9]} 19. Rhd1+ {[%clk 0:02:53.8]}
19... Kc7 {[%clk 0:02:30.7]} 20. Rd2 {[%clk 0:02:52.4]} 20... hxg3 {[%clk
0:02:29.3]} 21. hxg3 {[%clk 0:02:52.1]} 21... Rh8 {[%clk 0:02:25]} 22. Rad1
{[%clk 0:02:52.7]} 22... Rad8 {[%clk 0:02:24.5]} 23. Rxd8 {[%clk 0:02:53.3]}
23... Bxd8 {[%clk 0:02:24.8]} 24. Rd2 {[%clk 0:02:52.7]} 24... Rh2 {[%clk
0:02:20.3]} 25. Nd4 {[%clk 0:02:49]} 25... Rxd2+ {[%clk 0:02:14.2]} 26. Kxd2
{[%clk 0:02:48.8]} 26... Kd6 {[%clk 0:02:07.8]} 27. Kd3 {[%clk 0:02:48.4]} 27...
Bb6 {[%clk 0:02:02.8]} 28. a4 {[%clk 0:02:48]} 28... Kd5 {[%clk 0:01:52.4]} 29.
c4+ {[%clk 0:02:46.2]} 29... Kc5 {[%clk 0:01:44.6]} 30. Nc2 {[%clk 0:02:46.2]}
30... a5 {[%clk 0:01:41.5]} 31. b3 {[%clk 0:02:46.7]} 31... Kd6 {[%clk
0:01:35.5]} 32. Nd4 {[%clk 0:02:43.5]} 32... Bxd4 {[%clk 0:01:29.6]} 33. Kxd4
{[%clk 0:02:43.7]} 33... c5+ {[%clk 0:01:27.4]} 34. Ke3 {[%clk 0:02:43.5]} 34...
f6 {[%clk 0:01:22.5]} 35. Kf3 {[%clk 0:02:42.7]} 35... e5 {[%clk 0:01:22.1]} 36.
Ke3 {[%clk 0:02:41.1]} 36... Ke6 {[%clk 0:01:19.6]} 37. Kf3 {[%clk 0:02:39.1]}
37... Kf7 {[%clk 0:01:17]} 38. Ke3 {[%clk 0:02:24.4]} 38... Kg6 {[%clk
0:01:10.5]} 39. Ke2 {[%clk 0:02:21.5]} 39... Kf7 {[%clk 0:00:51.5]} 40. Kf2
{[%clk 0:02:20.9]} 40... Kg6 {[%clk 0:00:50.7]} 41. Kg2 {[%clk 0:02:20.6]} 41...
Kf7 {[%clk 0:00:42.3]} 42. Kf3 {[%clk 0:02:20.2]} 42... Kg6 {[%clk 0:00:41.4]}
43. Ke3 {[%clk 0:02:08.7]} 43... Kf7 {[%clk 0:00:40.5]} 44. Kd3 {[%clk
0:02:09.2]} 44... Ke6 {[%clk 0:00:39.4]} 45. Ke2 {[%clk 0:02:05.9]} 45... Kf7
{[%clk 0:00:39.3]} 46. Kf1 {[%clk 0:02:06.3]} 46... Ke6 {[%clk 0:00:39.5]} 47.
Kg2 {[%clk 0:02:06.6]} 47... Kf7 {[%clk 0:00:39.7]} 48. Kh3 {[%clk 0:02:06.8]}
48... Ke6 {[%clk 0:00:39.4]} 49. Kg2 {[%clk 0:01:57.2]} 49... Kf7 {[%clk
0:00:39]} 1/2-1/2